fUSD/lending_fUSD_20251223
["ID","MTS","AMOUNT","RATE_DAILY","PERIOD"]
[399535778,1766458243282,-500.0,0.00016149,2]
[399535779,1766458243292,-518.9281871,0.00016149,2]
[399535780,1766458243303,-250.0,0.00016149,2]
[399535781,1766458243313,-250.0,0.00016149,2]
[399535782,1766458243322,-250.0,0.00016149,2]
[399535783,1766458243332,-250.0,0.00016149,2]
[399535784,1766458243342,-250.0,0.00016149,2]
[399535785,1766458243352,-250.0,0.00016149,2]
[399535786,1766458243361,-250.0,0.00016149,2]
[399535787,1766458243371,-250.0,0.00016149,2]
[399535788,1766458243380,-250.0,0.00016149,2]
[399535789,1766458243390,-250.0,0.00016149,2]
[399535790,1766458243399,-250.0,0.00016149,2]
[399535791,1766458243409,-250.0,0.00016149,2]
[399535792,1766458243418,-250.0,0.00016149,2]
[399535793,1766458243428,-250.0,0.00016149,2]
[399535795,1766458243438,-250.0,0.00016149,2]
[399535796,1766458243448,-250.0,0.00016149,2]
[399535797,1766458243457,-250.0,0.00016149,2]
[399535798,1766458243467,-250.0,0.00016149,2]
[399535799,1766458243476,-250.0,0.00016149,2]
[399535800,1766458243485,-620.0,0.00016149,2]
[399535801,1766458243494,-250.0,0.00016149,2]
[399535802,1766458243503,-250.0,0.00016149,2]
[399535803,1766458243512,-322.6107,0.00016149,2]
[399535804,1766458243521,-250.0,0.00016149,2]
[399535805,1766458243531,-250.0,0.00016149,2]
[399535806,1766458243540,-250.0,0.00016149,2]
[399535807,1766458243550,-250.0,0.00016149,2]
[399535808,1766458243559,-250.0,0.00016149,2]
[399535809,1766458243568,-261.84535505,0.00016149,2]
[399535810,1766458243578,-4884.14826892,0.00016305,2]
[399535811,1766458243587,-3600.21764306,0.00016309,2]
[399535812,1766458243596,-433.0,0.00016388,2]
[399535813,1766458243606,-2540.9,0.00016438,2]
[399535814,1766458243615,-150.0,0.00016438,2]
[399535815,1766458243625,-600.0,0.00016438,2]
[399535816,1766458243635,-800.56570297,0.00016438,2]
[399535817,1766458243643,-170.7,0.00016438,2]
[399535818,1766458243653,-170.7,0.00016438,2]
[399535819,1766458243662,-170.7,0.00016438,2]
[399535820,1766458243671,-341.4,0.00016438,2]
[399535821,1766458243681,-150.0,0.00016438,2]
[399535822,1766458243690,-150.0,0.00016438,2]
[399535823,1766458243699,-150.0,0.00016438,2]
[399535824,1766458243709,-464.76,0.00016438,2]
[399535825,1766458243718,-738.93,0.00016438,2]
[399535826,1766458243728,-153.51,0.00016438,2]
[399535827,1766458243737,-150.0,0.00016438,2]
[399535828,1766458243747,-150.0,0.00016438,2]
[399535829,1766458243756,-150.0,0.00016465,2]
[399535830,1766458243765,-275.73097249,0.00016491,2]
[399535831,1766458243775,-150.0,0.00016493,2]
[399535832,1766458243784,-150.0,0.0001652,2]
[399535833,1766458243794,-1075.03616048,0.00016543,2]
[399535834,1766458243803,-150.0,0.00016548,2]
[399535835,1766458243813,-156.48893157,0.00016575,2]
[399535836,1766458243823,-437.11919958,0.00016586,2]
[399535837,1766458243832,-4884.14826892,0.00016603,2]
[399535838,1766458243841,-528.48122381,0.00016603,2]
[399535839,1766458243851,-3600.21764306,0.00016604,2]
[399535840,1766458243860,-217.15233878,0.00016697,2]
[399535841,1766458243869,-595.37131296,0.00016697,2]
[399535842,1766458243878,-1000.0,0.00016722,2]
[399535843,1766458243887,-1000.0,0.00016722,2]
[399535844,1766458243896,-1000.0,0.00016722,2]
[399535845,1766458243906,-1000.0,0.00016722,2]
[399535846,1766458243915,-1000.0,0.00016722,2]
[399535847,1766458243924,-481.771,0.00016781,2]
[399535848,1766458243934,-6859.934,0.000168,2]
[399535849,1766458243943,-1000.0,0.000168,2]
[399535850,1766458243952,-200.0,0.00016864,2]
[399535851,1766458243962,-10000.0,0.000169,2]
[399535852,1766458243971,-4884.14826892,0.000169,2]
[399535853,1766458243981,-1000.0,0.000169,2]
[399535854,1766458243990,-3600.21764306,0.000169,2]
[399535855,1766458243999,-1678.60439802,0.000169,2]
[399535856,1766458244008,-1193.28732225,0.000169,2]
[399535857,1766458244018,-212.29783598,0.000169,2]
[399535858,1766458244028,-958.46474459,0.000169,2]
[399535859,1766458244037,-500.0,0.000169,2]
[399535860,1766458244046,-500.0,0.000169,2]
[399535861,1766458244055,-500.0,0.000169,2]
[399535862,1766458244065,-500.0,0.000169,2]
[399535863,1766458244074,-500.0,0.000169,2]
[399535864,1766458244084,-500.0,0.000169,2]
[399535865,1766458244093,-500.0,0.000169,2]
[399535866,1766458244102,-500.0,0.000169,2]
[399535867,1766458244111,-500.0,0.000169,2]
[399535868,1766458244121,-500.0,0.000169,2]
[399535869,1766458244131,-500.0,0.000169,2]
[399535870,1766458244141,-500.0,0.000169,2]
[399535871,1766458244150,-500.0,0.000169,2]
[399535872,1766458244159,-500.0,0.000169,2]
[399535873,1766458244169,-500.0,0.000169,2]
[399535874,1766458244179,-500.0,0.000169,2]
[399535875,1766458244188,-500.0,0.000169,2]
[399535876,1766458244197,-500.0,0.000169,2]
[399535877,1766458244207,-500.0,0.000169,2]
[399535878,1766458244216,-500.0,0.000169,2]
[399535879,1766458244231,-500.0,0.000169,2]
[399535880,1766458244241,-500.0,0.000169,2]
[399535881,1766458244251,-500.0,0.000169,2]
[399535882,1766458244260,-500.0,0.000169,2]
[399535883,1766458244275,-500.0,0.000169,2]
[399535884,1766458244285,-420.10008661,0.000169,2]
[399535885,1766458244296,-11724.0,0.000169,2]
[399535886,1766458244308,-151.94715656,0.00016906,2]
[399535887,1766458244317,-917.0,0.00016959,2]
[399535888,1766458244327,-160.0,0.00016959,2]
[399535889,1766458244336,-1000.0,0.00016961,2]
[399535890,1766458244346,-1000.0,0.00016961,2]
[399535891,1766458244356,-1000.0,0.00016961,2]
[399535892,1766458244366,-1000.0,0.00016961,2]
[399535893,1766458244375,-265.838,0.00016961,2]
[399535894,1766458244386,-2000.0,0.00016967,2]
[399535895,1766458244395,-2000.0,0.00016967,2]
[399535896,1766458244404,-2000.0,0.00016967,2]
[399535897,1766458244413,-1973.065,0.00016967,2]
[399535898,1766458244423,-207.4,0.00016967,2]
[399535899,1766458244432,-500.0,0.00016973,2]
[399535900,1766458244442,-500.0,0.00016973,2]
[399535901,1766458244452,-500.12339319,0.00016973,2]
[399535902,1766458244461,-500.0,0.00016973,2]
[399535903,1766458244471,-223.00477947,0.00016973,2]
[399535904,1766458244480,-172.670649,0.00016973,2]
[399535905,1766458244490,-165.59889929,0.00016973,2]
[399535906,1766458244499,-500.0,0.00016973,2]
[399535907,1766458244509,-163.78632391,0.00016973,2]
[399535908,1766458244518,-500.0,0.00016973,2]
[399535909,1766458244527,-500.0,0.00016973,2]
[399535910,1766458244536,-500.0,0.00016973,2]
[399535911,1766458244546,-500.1214449,0.00016973,2]
[399535912,1766458244556,-500.0,0.00016973,2]
[399535913,1766458244565,-502.81331084,0.00016973,2]
[399535914,1766458244574,-160.20052694,0.00016973,2]
[399535915,1766458244583,-616.91721047,0.00016973,2]
[399535916,1766458244593,-500.0,0.00016973,2]
[399535917,1766458244602,-501.89912331,0.00016973,2]
[399535918,1766458244611,-500.0,0.00016973,2]
[399535919,1766458244621,-201.7413727,0.00016973,2]
[399535920,1766458244630,-500.2502142,0.00016973,2]
[399535921,1766458244639,-500.24988524,0.00016973,2]
[399535922,1766458244649,-500.0,0.00016973,2]
[399535923,1766458244658,-500.27460422,0.00016973,2]
[399535924,1766458244667,-500.0,0.00016973,2]
[399535925,1766458244676,-500.0,0.00016973,2]
[399535926,1766458244686,-500.0,0.00016973,2]
[399535927,1766458244696,-216.36061645,0.00016973,2]
[399535928,1766458244706,-381.05079451,0.00016973,2]
[399535929,1766458244715,-501.94430813,0.00016973,2]
[399535930,1766458244724,-160.29255705,0.00016973,2]
[399535931,1766458244733,-500.11396209,0.00016973,2]
[399535932,1766458244742,-500.0,0.00016973,2]
[399535933,1766458244752,-500.52659866,0.00016973,2]
[399535934,1766458244761,-500.82264109,0.00016973,2]
[399535935,1766458244771,-500.23725067,0.00016973,2]
[399535936,1766458244780,-165.51567643,0.00016973,2]
[399535937,1766458244789,-165.37952363,0.00016973,2]
[399535938,1766458244799,-500.08130902,0.00016973,2]
[399535939,1766458244808,-500.57373942,0.00016973,2]
[399535940,1766458244818,-500.8236575,0.00016973,2]
[399535941,1766458244827,-150.0,0.00016973,2]
[399535942,1766458244836,-150.0,0.00016973,2]
[399535943,1766458244846,-217.97780546,0.00016983,2]
[399535944,1766458244856,-631.35,0.00016986,2]
[399535945,1766458244865,-194.61616776,0.00016986,2]
[399535946,1766458244874,-197.6160128,0.00016986,2]
[399535947,1766458244883,-157.6823216,0.00016986,2]
[399535948,1766458244894,-1178.227467,0.0001699,2]
[399535949,1766458244903,-1178.227467,0.0001699,2]
[399535950,1766458244912,-45265.4930356,0.00016997,2]
[399535951,1766458244922,-520.33216944,0.00016997,2]
[399535952,1766458244931,-2193.5387076,0.00016997,2]
[399535953,1766458244941,-500.0,0.00016997,2]
[399535954,1766458244951,-9641.7867261,0.00016997,2]
[399535955,1766458244961,-1500.0,0.00016998,2]
[399535956,1766458244970,-1500.0,0.00016998,2]
[399535957,1766458244979,-1500.0,0.00016998,2]
[399535958,1766458244989,-1500.0,0.00016998,2]
[399535959,1766458244998,-1500.0,0.00016998,2]
[399535960,1766458245007,-1500.0,0.00016998,2]
[399535961,1766458245018,-1500.0,0.00016998,2]
[399535962,1766458245027,-1500.0,0.00016998,2]
[399535963,1766458245037,-1500.0,0.00016998,3]
[399535964,1766458245046,-1500.0,0.00016998,3]
[399535965,1766458245055,-1500.0,0.00016998,2]
[399535966,1766458245065,-1500.0,0.00016998,2]
[399535967,1766458245074,-1500.0,0.00016998,2]
[399535968,1766458245083,-1500.0,0.00016998,2]
[399535969,1766458245093,-1500.0,0.00016998,2]
[399535970,1766458245103,-1500.0,0.00016998,2]
[399535971,1766458245112,-1500.0,0.00016998,2]
[399535972,1766458245122,-1500.0,0.00016998,2]
[399535973,1766458245131,-1500.0,0.00016998,5]
[399535974,1766458245141,-1500.0,0.00016998,3]
[399535975,1766458245150,-1500.0,0.00016998,3]
[399535976,1766458245160,-1500.0,0.00016998,2]
[399535977,1766458245169,-1500.0,0.00016998,2]
[399535978,1766458245179,-1500.0,0.00016998,2]
[399535979,1766458245189,-1500.0,0.00016998,2]
[399535980,1766458245198,-1500.0,0.00016998,2]
[399535981,1766458245208,-1500.0,0.00016998,2]
[399535982,1766458245217,-1500.0,0.00016998,2]
[399535983,1766458245231,-1500.0,0.00016998,2]
[399535984,1766458245241,-756.67158664,0.00016998,2]
[399535985,1766458245251,-1500.0,0.00016998,2]
[399535986,1766458245261,-500.0,0.00016999,2]
[399535987,1766458245271,-500.0,0.00016999,2]
[399535988,1766458245280,-500.0,0.00016999,2]
[399535989,1766458245290,-500.0,0.00016999,2]
[399535990,1766458245300,-500.0,0.00016999,2]
[399535991,1766458245309,-500.0,0.00016999,2]
[399535992,1766458245319,-500.0,0.00016999,2]
[399535993,1766458245328,-500.0,0.00016999,2]
[399535994,1766458245338,-500.0,0.00016999,2]
[399535995,1766458245347,-500.0,0.00016999,2]
[399535996,1766458245356,-610.06622025,0.00016999,2]
[399535997,1766458245366,-300.0,0.00016999,2]
[399535998,1766458245375,-666.0,0.00016999,2]
[399535999,1766458245386,-150.0,0.00016999,2]
[399536000,1766458245396,-300.0,0.00016999,2]
[399536001,1766458245406,-666.0,0.00016999,2]
[399536002,1766458245415,-6076991.77972738,0.00017,2]
[399536003,1766458245502,-178.47,0.00016438,2]
[399536004,1766458245511,-275.73097249,0.000169,2]
[399536005,1766458245521,-87.62297649,0.00017,2]
[399536014,1766458246464,-500.0,0.0001413,2]
[399536015,1766458246473,-169.79160068,0.0001413,2]
[399536016,1766458246485,-330.20839932,0.0001413,2]
[399536017,1766458246495,-349.72632585,0.0001413,2]
[399536018,1766458246545,-150.27367415,0.0001413,2]
[399536019,1766458246555,-500.0,0.0001413,2]
[399536020,1766458246564,-500.0,0.0001413,2]
[399536021,1766458246573,-500.0,0.0001413,2]
[399536022,1766458246582,-500.0,0.0001413,2]
[399536023,1766458246592,-500.0,0.0001413,2]
[399536024,1766458246601,-500.0,0.0001413,2]
[399536025,1766458246610,-500.0,0.0001413,2]
[399536026,1766458246619,-186.02278207,0.0001413,2]
[399536027,1766458246628,-500.0,0.0001413,2]
[399536028,1766458246638,-500.0,0.0001413,2]
[399536029,1766458246647,-500.0,0.0001413,2]
[399536030,1766458246657,-500.0,0.0001413,2]
[399536031,1766458246666,-500.0,0.0001413,2]
[399536032,1766458246675,-500.0,0.0001413,2]
[399536033,1766458246685,-500.0,0.0001413,2]
[399536034,1766458246694,-500.0,0.0001413,2]
[399536035,1766458246703,-500.0,0.0001413,2]
[399536036,1766458246712,-467.65266073,0.0001413,2]
[399536038,1766459090077,1037.2525568,0.000226,120]
[399536039,1766459183684,159.75,7.081e-05,2]
[399536042,1766459431884,-172.13511564,0.00013108,2]
[399536043,1766459431893,-1200.0,0.00013207,2]
[399536044,1766459431902,-300.0,0.00013208,2]
[399536045,1766459431912,-134.88250602,0.00013208,2]
[399536046,1766459431923,-165.11749398,0.00013208,2]
[399536047,1766459431933,-192.18610959,0.00013209,2]
[399536048,1766459431944,-1407.81389041,0.00013209,2]
[399536049,1766459431953,-152.93366456,0.00013209,2]
[399536050,1766459431968,-1347.06633544,0.00013209,2]
[399536051,1766459431978,-1000.0,0.00013209,2]
[399536052,1766459431987,-13312.4,0.00013407,2]
[399536053,1766459431998,-166.66,0.00013699,2]
[399536054,1766459432007,-166.66,0.00013836,2]
[399536055,1766459432016,-208.03089844,0.00013873,2]
[399536056,1766459432026,-500.0,0.0001393,2]
[399536057,1766459432035,-271.26761866,0.0001393,2]
[399536058,1766459432044,-196.40281033,0.0001393,2]
[399536059,1766459432054,-622.875786,0.0001393,2]
[399536060,1766459432063,-500.0,0.0001393,2]
[399536061,1766459432073,-500.0,0.0001393,2]
[399536062,1766459432082,-500.0,0.0001393,2]
[399536063,1766459432095,-500.0,0.0001393,2]
[399536064,1766459432104,-172.68578649,0.0001393,2]
[399536065,1766459432114,-500.0,0.0001393,2]
[399536066,1766459432125,-500.0,0.0001393,2]
[399536067,1766459432134,-500.0,0.0001393,2]
[399536068,1766459432144,-500.0,0.0001393,2]
[399536069,1766459432153,-242.89142023,0.0001393,2]
[399536070,1766459432163,-520.87024221,0.0001393,2]
[399536071,1766459432172,-520.87024221,0.0001393,2]
[399536072,1766459432182,-520.87024221,0.0001393,2]
[399536073,1766459432191,-520.87024221,0.0001393,2]
[399536074,1766459432200,-520.87024221,0.0001393,2]
[399536075,1766459432210,-520.87024221,0.0001393,2]
[399536076,1766459432219,-520.87024221,0.0001393,2]
[399536077,1766459432228,-520.87024221,0.0001393,2]
[399536078,1766459432237,-520.87024221,0.0001393,2]
[399536079,1766459432246,-520.87024221,0.0001393,2]
[399536081,1766459432255,-520.87024221,0.0001393,2]
[399536082,1766459432265,-520.87024221,0.0001393,2]
[399536084,1766459432274,-520.87024221,0.0001393,2]
[399536086,1766459432283,-520.87024221,0.0001393,2]
[399536088,1766459432293,-520.87024221,0.0001393,2]
[399536090,1766459432303,-520.87024221,0.0001393,2]
[399536092,1766459432312,-520.87024221,0.0001393,2]
[399536095,1766459432321,-520.87024221,0.0001393,2]
[399536097,1766459432330,-520.87024221,0.0001393,2]
[399536099,1766459432339,-520.87024221,0.0001393,2]
[399536101,1766459432349,-520.87024221,0.0001393,2]
[399536102,1766459432359,-520.87024221,0.0001393,2]
[399536104,1766459432368,-520.87024221,0.0001393,2]
[399536106,1766459432377,-520.87024221,0.0001393,2]
[399536108,1766459432386,-520.87024221,0.0001393,2]
[399536111,1766459432396,-520.87024221,0.0001393,2]
[399536112,1766459432405,-520.87024221,0.0001393,2]
[399536115,1766459432415,-520.87024221,0.0001393,2]
[399536117,1766459432423,-520.87024221,0.0001393,2]
[399536118,1766459432432,-520.87024221,0.0001393,2]
[399536120,1766459432441,-520.87024221,0.0001393,2]
[399536122,1766459432451,-520.87024221,0.0001393,2]
[399536124,1766459432460,-520.87024221,0.0001393,2]
[399536126,1766459432469,-520.87024221,0.0001393,2]
[399536127,1766459432478,-520.87024221,0.0001393,2]
[399536128,1766459432487,-520.87024221,0.0001393,2]
[399536129,1766459432496,-520.87024221,0.0001393,2]
[399536131,1766459432506,-520.87024221,0.0001393,2]
[399536133,1766459432516,-520.87024221,0.0001393,2]
[399536134,1766459432525,-520.87024221,0.0001393,2]
[399536135,1766459432534,-520.87024221,0.0001393,2]
[399536136,1766459432546,-520.87024221,0.0001393,2]
[399536137,1766459432555,-520.87024221,0.0001393,2]
[399536138,1766459432564,-520.87024221,0.0001393,2]
[399536139,1766459432574,-520.87024221,0.0001393,2]
[399536140,1766459432584,-520.87024221,0.0001393,2]
[399536141,1766459432594,-520.87024221,0.0001393,2]
[399536142,1766459432604,-520.87024221,0.0001393,2]
[399536143,1766459432614,-514.14933585,0.0001393,2]
[399536144,1766459432627,-514.14933585,0.0001393,2]
[399536145,1766459432637,-514.14933585,0.0001393,2]
[399536146,1766459432646,-514.14933585,0.0001393,2]
[399536147,1766459432656,-514.14933585,0.0001393,2]
[399536148,1766459432665,-514.14933585,0.0001393,2]
[399536149,1766459432674,-514.14933585,0.0001393,2]
[399536150,1766459432683,-514.14933585,0.0001393,2]
[399536151,1766459432692,-514.14933585,0.0001393,2]
[399536152,1766459432702,-514.14933585,0.0001393,2]
[399536153,1766459432711,-514.14933585,0.0001393,2]
[399536154,1766459432720,-514.14933585,0.0001393,2]
[399536155,1766459432729,-514.14933585,0.0001393,2]
[399536156,1766459432739,-514.14933585,0.0001393,2]
[399536157,1766459432748,-514.14933585,0.0001393,2]
[399536158,1766459432757,-514.14933585,0.0001393,2]
[399536159,1766459432766,-514.14933585,0.0001393,2]
[399536160,1766459432775,-514.14933585,0.0001393,2]
[399536161,1766459432784,-514.14933585,0.0001393,2]
[399536162,1766459432794,-514.14933585,0.0001393,2]
[399536163,1766459432804,-514.14933585,0.0001393,2]
[399536164,1766459432814,-514.14933585,0.0001393,2]
[399536165,1766459432824,-514.14933585,0.0001393,2]
[399536166,1766459432833,-514.14933585,0.0001393,2]
[399536167,1766459432842,-514.14933585,0.0001393,2]
[399536168,1766459432852,-514.14933585,0.0001393,2]
[399536169,1766459432862,-514.14933585,0.0001393,2]
[399536170,1766459432871,-514.14933585,0.0001393,2]
[399536171,1766459432880,-514.14933585,0.0001393,2]
[399536172,1766459432889,-514.14933589,0.0001393,2]
[399536173,1766459432898,-514.14933588,0.0001393,2]
[399536174,1766459432907,-82916.69336445,0.00013931,2]
[399536175,1766459432929,-4397.35,0.00013931,2]
[399536176,1766459437994,-10956.39067901,0.00013931,2]
[399536177,1766459438263,-1090.66059968,0.00013931,2]
[399536178,1766459438275,-2068.71902267,0.00013931,2]
[399536179,1766459438286,-198790.65864606,0.00013931,2]
[399536180,1766459438297,-1125.19911578,0.00013931,2]
[399536181,1766459438308,-367.2073599,0.00013931,2]
[399536182,1766459438370,-6696.44005471,0.00013931,2]
[399536190,1766459440379,-2315.09651318,0.00013931,2]
[399536197,1766459446224,-781.03893058,0.00013931,2]
[399536198,1766459446236,-523.7489844,0.00013931,2]
[399536199,1766459446277,-2640.0,0.00013931,2]
[399536200,1766459446330,-2151.9488,0.00013831,2]
[399536201,1766459446339,-257.38704131,0.00013931,2]
[399536203,1766459808395,-300.0,0.00013577,2]
[399536204,1766460311283,271.35184513,0.000226,120]
[399536209,1766460555540,350.61,0.00013,10]
[399536215,1766460632096,-166.66,0.00013368,2]
[399536217,1766460632106,-191.21831592,0.00013552,2]
[399536219,1766460632117,-108.78168408,0.00013552,2]
[399536221,1766460632126,-172.13511563,0.000136,2]
[399536222,1766460632135,-2500.0,0.00013631,2]
[399536223,1766460632145,-166.87140283,0.00013661,2]
[399536224,1766460632154,-741.60243676,0.000137,2]
[399536225,1766460632163,-254.25998698,0.000137,2]
[399536226,1766460632172,-1200.0,0.00013728,2]
[399536227,1766460632181,-1200.0,0.00013729,2]
[399536228,1766460632190,-300.0,0.00013729,2]
[399536229,1766460632199,-300.0,0.00013729,2]
[399536230,1766460632208,-300.0,0.00013729,2]
[399536231,1766460632217,-150.0,0.00013729,2]
[399536232,1766460632226,-189.88733306,0.0001373,2]
[399536233,1766460632235,-500.0,0.0001373,2]
[399536234,1766460632244,-286.0130502,0.0001373,2]
[399536235,1766460632253,-500.0,0.0001373,2]
[399536236,1766460632263,-391.67948128,0.0001373,2]
[399536237,1766460632271,-500.0,0.0001373,2]
[399536238,1766460632280,-500.0,0.0001373,2]
[399536239,1766460632289,-500.0,0.0001373,2]
[399536240,1766460632298,-500.0,0.0001373,2]
[399536241,1766460632307,-500.0,0.0001373,2]
[399536242,1766460632315,-500.0,0.0001373,2]
[399536243,1766460632324,-500.0,0.0001373,2]
[399536244,1766460632333,-500.0,0.0001373,2]
[399536245,1766460632342,-500.0,0.0001373,2]
[399536246,1766460632352,-378.13820959,0.0001373,2]
[399536247,1766460632363,-121.86179041,0.0001373,2]
[399536248,1766460632372,-500.0,0.0001373,2]
[399536249,1766460632381,-261.39726371,0.0001373,2]
[399536250,1766460632390,-500.0,0.0001373,2]
[399536251,1766460632399,-2298.31089141,0.00013731,2]
[399536252,1766460632410,-1613.9502996,0.00013731,2]
[399536253,1766460632429,-4328.06566314,0.00013731,2]
[399536254,1766460632443,-642.93059852,0.00013731,2]
[399536255,1766460632454,-1159.00839995,0.00013731,2]
[399536256,1766460632465,-872.66531044,0.00013731,2]
[399536257,1766460632476,-7022.23261536,0.00013731,2]
[399536258,1766460632491,-13206.39981648,0.00013731,2]
[399536259,1766460632502,-290.05642929,0.00013731,2]
[399536260,1766460632513,-12500.71684066,0.00013731,2]
[399536261,1766460632524,-406.33173265,0.00013731,2]
[399536263,1766460632535,-780.71527075,0.00013731,2]
[399536265,1766460632546,-7657.75409516,0.00013731,2]
[399536268,1766460632561,-5554.73846656,0.00013731,2]
[399536270,1766460632572,-3045.52,0.00013731,2]
[399536272,1766460632583,-725.11635651,0.00013731,2]
[399536275,1766460632594,-603.84235597,0.00013731,2]
[399536277,1766460632605,-5207.02539024,0.00013731,2]
[399536279,1766460632616,-2065.94529364,0.00013731,2]
[399536281,1766460632627,-2062.13091084,0.00013731,2]
[399536284,1766460632643,-8614.86124748,0.00013731,2]
[399536286,1766460632654,-835.19021143,0.00013731,2]
[399536288,1766460632667,-567.05475244,0.00013731,2]
[399536293,1766460638178,-9135.62255085,0.00013731,2]
[399536297,1766460638286,-766.80359483,0.00013731,2]
[399536298,1766460638299,-710.65073746,0.00013731,2]
[399536299,1766460638310,-480.71237647,0.00013731,2]
[399536300,1766460638395,-846.33812054,0.00013731,2]
[399536301,1766460638406,-639.31888652,0.00013731,2]
[399536308,1766460640210,-730.49896552,0.00013731,2]
[399536309,1766460640221,-259.1558834,0.00013731,2]
[399536310,1766460640232,-661.80239934,0.00013731,2]
[399536311,1766460640264,-347.053942,0.00013731,2]
[399536312,1766460640320,-8242.04724838,0.00013731,2]
[399536313,1766460640480,-895119.43234617,0.00013731,2]
[399536314,1766460640489,-254.25998696,0.00013761,2]
[399536315,1766460640498,-993.17202152,0.000138,2]
[399536316,1766460640507,-166.66,0.00013809,2]
[399536317,1766460640516,-254.25998696,0.00013822,2]
[399536318,1766460640525,-385.417,0.0001383,2]
[399536319,1766460640535,-5601.429,0.0001383,2]
[399536320,1766460640544,-21937.3066,0.00013831,2]
[399536321,1766460640554,-1000.0,0.00013831,2]
[399536322,1766460640563,-261.93651088,0.00013863,2]
[399536323,1766460640572,-3967.49,0.00013873,2]
[399536324,1766460640581,-1359.86,0.00013873,2]
[399536325,1766460640590,-135326.81,0.00013873,2]
[399536326,1766460640601,-5181.21,0.00013873,2]
[399536327,1766460640610,-9999.99,0.00013873,2]
[399536328,1766460640619,-29999.99,0.00013873,2]
[399536329,1766460640628,-9999.99,0.00013873,2]
[399536330,1766460640637,-511.88,0.00013873,2]
[399536331,1766460640646,-150.99,0.00013873,2]
[399536332,1766460640655,-1098.9027,0.0001389,2]
[399536333,1766460640664,-13934.99,0.0001389,2]
[399536334,1766460640674,-500.0,0.0001389,2]
[399536335,1766460640683,-850.15,0.00013922,2]
[399536336,1766460640692,-7269.47,0.00013922,2]
[399536337,1766460640702,-9999.99,0.00013922,2]
[399536338,1766460640711,-1462.17,0.00013922,2]
[399536339,1766460640720,-1175.94,0.00013922,2]
[399536340,1766460640730,-2557.83,0.00013922,2]
[399536341,1766460640739,-150.99,0.00013922,2]
[399536342,1766460640748,-299.99,0.00013922,2]
[399536343,1766460640757,-97841.46,0.00013922,2]
[399536344,1766460640766,-4543.13,0.00013922,2]
[399536345,1766460640775,-37484.89,0.00013922,2]
[399536346,1766460640785,-500.0,0.00013923,2]
[399536347,1766460640794,-317.40649258,0.00013923,2]
[399536348,1766460640804,-151.0,0.00013923,2]
[399536349,1766460640814,-151.0,0.00013923,2]
[399536350,1766460640823,-151.0,0.00013923,2]
[399536351,1766460640832,-151.0,0.00013923,2]
[399536352,1766460640840,-151.0,0.00013923,2]
[399536353,1766460640849,-500.0,0.00013923,2]
[399536354,1766460640858,-151.0,0.00013923,2]
[399536355,1766460640867,-500.0,0.00013923,2]
[399536356,1766460640875,-151.0,0.00013923,2]
[399536357,1766460640888,-500.0,0.00013923,2]
[399536358,1766460640897,-151.0,0.00013923,2]
[399536359,1766460640906,-500.0,0.00013923,2]
[399536360,1766460640915,-200.0,0.00013923,2]
[399536361,1766460640924,-151.0,0.00013923,2]
[399536362,1766460640934,-500.0,0.00013923,2]
[399536363,1766460640943,-151.0,0.00013923,2]
[399536364,1766460640952,-154.80758812,0.00013923,2]
[399536365,1766460640961,-151.0,0.00013923,2]
[399536366,1766460640970,-500.0,0.00013923,2]
[399536367,1766460640979,-151.0,0.00013923,2]
[399536368,1766460640988,-500.0,0.00013923,2]